{"text_format":"1","workbook":"xlsx","n_sheets":2,"sheets":["берізка","городецкого"],"not_rendered":{"charts":0,"images":0,"macros":1,"external_links":0,"defined_names":2,"comments":0,"pivot_tables":0},"unopened":[],"bounds":{"document_bytes":16777216,"sheet_cells":100000,"rows_first":2000,"rows_last":500,"rows_between":2000,"halvings":0,"cell_chars":16384,"cell_head_chars":4096},"cells_cut":0,"cells_raw":0,"read":"whole","date_system":"1900"}

{"sheet":"берізка","index":0,"n_rows":22,"n_cols":13,"rows_kept":22,"cut":false,"hidden":false,"merged":[[18,6,18,7],[20,6,20,7],[2,1,2,9],[3,0,3,10],[4,0,5,0],[4,1,5,1],[4,2,4,4],[4,5,5,5],[4,6,4,9],[4,10,5,10]]}
[null,null,null,null,null,null,null,null,null,null,null,null,"          Додаток до листа"]
[null,null,null,null,null,null,null,null,null,null,null,null,"             від ________ 2018 № ______"]
[null,"ІНФОРМАЦІЯ                                                                                                                                                                                                                                                                                                                                                                                                                    про надходження і використання благодійних пожертв від фізичних та юридичних осіб                                                                                                                                                     ___Київський міський будинок дитини \"Берізка\"___за__ІІI__квартал__2019___року "]
["                                                                                                                                            найменування закладу охорони здоров′я"]
["№ пп","Найменування юридичної особи (або позначення фізичної особи)","Благодійні пожертви, що були отримані закладом охорони здоров'я від фізичних та юридичних осіб",null,null,"Всього отримано благодійних пожертв, тис. грн","Використання закладом охорони здоров'я благодійних пожертв, отриманих у грошовій (товари і послуг) формі",null,null,null,"Залишок невикористаних грошових коштів, товарів та послуг на кінець звітного періоду,            тис. грн"]
[null,null,"В грошовій форм, тис. грн","В  натуральній формі (товари і послуги),    тис. грн","Перелік товарів і послуг в натуральній формі (канцтовари, господарські товари, будівельні товари, медикаменти та перев'язувальні матеріали, продукти харчування, м\"який інвентар, основні засоби та інші)",null,"Напрямки використання у грошовій формі (стаття витрат)","Сума,          тис. грн","Перелік використаних товарів та послуг у натуральній формі  (канцтовари, господарські товари, будівельні товари, медикаменти та перев'язувальні матеріали, продукти харчування, м\"який інвентар, основні засоби та інші)","Сума,          тис. грн"]
[1,"Фізична особа",62.1,0.67,"засоби гігієни",{"$f":"SUM(C7,D7)","v":62.77},null,null,"засоби гігієни",0.35,{"$f":"F7-J7-H7","v":62.42}]
[null,null,null,0.52,"мякий інвентар",{"$f":"SUM(C8,D8)","v":0.52},null,null,"мякий інвентар",null,0.52]
[null,null,null,5.4,"електроприбори",5.4,null,null,"електроприбори",null,5.4]
[null,null,null,28.95,"засоби по догляду за малюками",28.95,null,null,"засоби по догляду за малюками",18.03,10.919999999999998]
[null,null,null,62.52,"продукти харчування",62.52,null,null,"продукти харчування",39.049999999999997,23.470000000000006]
[2,"ТОВ \"Хіпп Україна\"",null,28.07,"продукти харчування",28.07,null,null,"продукти харчування",15.97,12.1]
[null,"Інтернет магазин Дубіду",null,2.3199999999999998,"продукти харчування",{"$f":"SUM(C13,D13)","v":2.3199999999999998},null,null,"продукти харчування",2.3199999999999998,0]
[3,"БО \"БФ паліативної допомоги \"Лавіта\"",null,4.32,"засоби по догляду за малюками",4.32,null,null,"засоби по догляду за малюками",4.32,0]
[null,null,null,0.68,"мякий інвентар",0.68,null,null,"мякий інвентар",null,0.68]
[null,"ВСЬОГО по закладу",{"$f":"SUM(C7:C15)","v":62.1},{"$f":"SUM(D7:D15)","v":133.44999999999999},null,195.54999999999998,null,{"$f":"SUM(H7:H15)","v":0},null,{"$f":"SUM(J7:J15)","v":80.039999999999992},{"$f":"F16-H16-J16","v":115.50999999999999}]
[]
[]
[null,"в.о. Головного лікаря",null,null,null,null,"Тихомирова К.О."]
[null,null,null,null,null,"(підпис)           (ініціали і прізвище) "]
[null,"Головний бухгалтер",null,null,null,null,"Вороніна І.В."]
[null,null,null,null,null,"(підпис)           (ініціали і прізвище) "]

{"sheet":"городецкого","index":1,"n_rows":54,"n_cols":13,"rows_kept":54,"cut":false,"hidden":false,"merged":[[50,6,50,7],[52,6,52,7],[2,1,2,9],[3,0,3,10],[4,0,5,0],[4,1,5,1],[4,2,4,4],[4,5,5,5],[4,6,4,9],[4,10,5,10]]}
[null,null,null,null,null,null,null,null,null,null,null,null,"          Додаток до листа"]
[null,null,null,null,null,null,null,null,null,null,null,null,"             від ________ 2018 № ______"]
[null,"ІНФОРМАЦІЯ                                                                                                                                                                                                                                                                                                                                                                                                                    про надходження і використання благодійних пожертв від фізичних та юридичних осіб                                                                                                                                                     Київський міський будинок дитини ім. М.М. Городецького за ІІІ квартал 2019року "]
["                                                                                                                                            найменування закладу охорони здоров′я"]
["№ пп","Найменування юридичної особи (або позначення фізичної особи)","Благодійні пожертви, що були отримані закладом охорони здоров'я від фізичних та юридичних осіб",null,null,"Всього отримано благодійних пожертв, тис. грн","Використання закладом охорони здоров'я благодійних пожертв, отриманих у грошовій (товари і послуг) формі",null,null,null,"Залишок невикористаних грошових коштів, товарів та послуг на кінець звітного періоду,            тис. грн"]
[null,null,"В грошовій форм, тис. грн","В  натуральній формі (товари і послуги),    тис. грн","Перелік товарів і послуг в натуральній формі (канцтовари, господарські товари, будівельні товари, медикаменти та перев'язувальні матеріали, продукти харчування, м\"який інвентар, основні засоби та інші)",null,"Напрямки використання у грошовій формі (стаття витрат)","Сума,          тис. грн","Перелік використаних товарів та послуг у натуральній формі  (канцтовари, господарські товари, будівельні товари, медикаменти та перев'язувальні матеріали, продукти харчування, м\"який інвентар, основні засоби та інші)","Сума,          тис. грн"]
[null,"КО \"Спілка Самаритян\"",null,291.32,"прод. харчування",{"$f":"SUM(C7,D7)","v":291.32},2230,null,"прод.харчування",291.32,0]
[null,"Приватна особа",null,41.32,"прод. харчування",{"$f":"SUM(C8,D8)","v":41.32},2230,null,"прод.харчування",41.32,0]
[null,"Приватна особа",null,146.38999999999999,"іграшки",146.38999999999999,2210,null,"іграшки",146.38999999999999]
[null,"Приватна особа",null,258,"мякий інвентар",{"$f":"SUM(C10,D10)","v":258},2210,null,"мякий інвентар",258]
[null,"ВіДіАвтосітіКільцева",null,47.66,"канц.товари",47.66,2210,null,"канц.товари",47.66]
[null,"Компанія \"Агроскоп\"",null,350.46,"госп.матеріали",350.46,2210,null,"господ.матеріали",350.46]
[null,"ТОВ \"Парі\"",null,118.48,"меблі",118.48,2210,null,"меблі",118.48]
[null,"Приватна особа",null,64.430000000000007,"миючі засоби",64.430000000000007,2210,null,"миючі засоби",64.430000000000007]
[null,"Приватна особа",null,328.23,"засоби гігієни",328.23,2210,null,"засоби гігієни",328.23]
[null,"Приватна особа",null,112.25,"медикаменти",112.25,2220,null,"медикаменти",112.25]
[null,"ТОВ \"Натане-Фарм\"",null,20.46,"медикаменти",{"$f":"SUM(C17,D17)","v":20.46},2220,null,"медикаменти",20.46]
[null,"ТОВ \"Сильний бумеранг\"",null,0.86,"медикаменти",{"$f":"SUM(C18,D18)","v":0.86},2220,null,"медикаменти",0.86]
[null,"Приватна особа",596.62099999999998,null,null,596.62099999999998,2230,480.04,"прод.харчування"]
[null,"Приватна особа",null,74.739999999999995,"основні засоби",74.739999999999995,3110,null,"основні засоби",74.739999999999995]
[null,"БМФ \"Санахант\"",null,43.56,"основні засоби",43.56,3110,null,"основні засоби",43.56]
[null,"ТОВ \"Ромстал\"",null,61.42,"основні засоби",61.42,3110,null,"основні засоби",61.42]
[null,null,null,null,null,0]
[null,null,null,null,null,0]
[null,null,null,null,null,0]
[null,null,null,null,null,0]
[null,null,null,null,null,0]
[null,null,null,null,null,0]
[null,null,null,null,null,0]
[null,null,null,null,null,0]
[null,null,null,null,null,0]
[null,null,null,null,null,0]
[null,null,null,null,null,0]
[null,null,null,null,null,0]
[null,null,null,null,null,0]
[null,null,null,null,null,0]
[null,null,null,null,null,0]
[null,null,null,null,null,0]
[null,null,null,null,null,0]
[null,null,null,null,null,0]
[null,null,null,null,null,0]
[null,null,null,null,null,0]
[null,null,null,null,null,0]
[null,null,null,null,null,0]
[null,null,null,null,null,0]
[null,null,null,null,null,0]
[null,null,null,null,null,0]
[null,"ВСЬОГО по закладу",{"$f":"SUM(C7:C47)","v":596.62099999999998},{"$f":"SUM(D7:D47)","v":1959.58},null,2556.201,null,{"$f":"SUM(H7:H47)","v":480.04},null,{"$f":"SUM(J7:J47)","v":1959.58},{"$f":"C48-H48","v":116.58099999999996}]
[]
[]
[null,"Керівник установи",null,null,null,null,"В.І. Федорова"]
[null,null,null,null,null,"(підпис)           (ініціали і прізвище) "]
[null,"Головний бухгалтер",null,null,null,null,"М.Ю. Кінаш"]
[null,null,null,null,null,"(підпис)           (ініціали і прізвище) "]